bitfinex/quotes_SOLUSD_20211001
["timestamp","ask_amount","ask_price","bid_price","bid_amount"]
[1633060242505,80.00063374,139.47,139.41,9.61357697]
[1633060242906,3.74574704,139.46,139.41,9.61357697]
[1633060243109,24.0036714,139.45,139.41,9.61357697]
[1633060243505,9.61357697,139.41,139.34,30.12576338]
[1633060243706,33.51157697,139.41,139.34,26.4]
[1633060244510,9.61357697,139.41,139.34,26.4]
[1633060245710,2.45,139.43,139.41,4.76259538]
[1633060245910,2.45,139.48,139.41,4.76259538]
[1633060246308,30.0,139.5,139.41,4.76259538]
[1633060246709,24.61696446,139.49,139.41,4.76259538]
[1633060248509,2.45,139.5,139.41,4.76259538]
[1633060249114,2.45,139.5,139.41,4.78389298]
[1633060249912,2.45,139.54,139.41,7.23389298]
[1633060250111,2.45,139.54,139.41,22.48189298]
[1633060250610,25.42843318,139.54,139.41,22.48189298]
[1633060251410,25.42843318,139.54,139.41,7.23389298]
[1633060252813,2.45,139.54,139.41,7.23389298]
[1633060253012,2.45,139.54,139.41,12.86932259]
[1633060253414,2.45,139.54,139.41,86.14572259]
[1633060253613,2.45,139.54,139.41,204.70476491]
[1633060253814,2.45,139.54,139.42,0.0212976]
[1633060254015,2.45,139.58,139.43,2.45]
[1633060254212,2.45,139.58,139.44,0.0212976]
[1633060254414,2.45,139.58,139.45,2.45]
[1633060255015,32.25355526,139.58,139.45,2.45]
[1633060255613,2.45,139.58,139.47,408.95408022]
[1633060258020,2.45,139.58,139.47,431.38708022]
[1633060258218,2.45,139.61,139.48,2.4712976]
[1633060259416,27.87987798,139.6,139.48,2.4712976]
[1633060259617,2.45,139.59,139.48,0.0212976]
[1633060259822,2.48776382,139.57,139.48,0.0212976]
[1633060260023,28.64182336,139.56,139.48,0.0212976]
[1633060260218,28.64182336,139.56,139.44,26.4]
[1633060260419,50.61282336,139.56,139.44,26.4]
[1633060260623,50.11282336,139.56,139.44,26.4]
[1633060260819,28.14182336,139.56,139.44,26.4]
[1633060261022,28.14182336,139.56,139.41,7.21259538]
[1633060261228,28.14182336,139.56,139.42,0.0212976]
[1633060261423,2.45,139.56,139.42,30.84072721]
[1633060261625,2.45,139.56,139.43,0.0212976]
[1633060261822,2.45,139.59,139.44,2.45]
[1633060262023,2.45,139.59,139.44,8.08542961]
[1633060262223,2.45,139.59,139.45,5.63542961]
[1633060262423,2.45,139.59,139.46,2.45]
[1633060263825,2.45,139.59,139.47,0.0212976]
[1633060264626,2.45,139.59,139.48,2.45]
[1633060267731,2.45,139.59,139.52,536.74799351]
[1633060267929,28.01758008,139.58,139.52,536.74799351]
[1633060268133,2.45,139.57,139.52,536.74799351]
[1633060268732,2.45,139.57,139.43,0.0212976]
[1633060268931,2.45,139.57,139.41,401.05332259]
[1633060269732,18.248,139.57,139.41,406.6887522]
[1633060270130,18.248,139.57,139.41,401.05332259]
[1633060270531,41.81702961,139.57,139.41,401.05332259]
[1633060270732,69.49538008,139.57,139.41,401.05332259]
[1633060270931,69.49538008,139.57,139.41,7.21259538]
[1633060271132,78.97463304,139.57,139.41,7.21259538]
[1633060271931,78.97463304,139.57,139.41,4.76259538]
[1633060272131,9.48129268,139.54,139.41,4.76259538]
[1633060272333,29.76824159,139.53,139.41,4.76259538]
[1633060272533,52.45858288,139.53,139.41,4.76259538]
[1633060272732,33.31378008,139.52,139.41,4.76259538]
[1633060272935,2.45,139.51,139.41,4.76259538]
[1633060273137,26.79138339,139.5,139.41,4.76259538]
[1633060273333,2.45,139.49,139.41,4.76259538]
[1633060274335,25.14034129,139.49,139.41,4.76259538]
[1633060274735,4.76259538,139.41,139.3,2.4712976]
[1633060274936,23.72159538,139.41,139.3,2.4712976]
[1633060275137,25.69462183,139.4,139.3,2.45]
[1633060275336,28.14462183,139.4,139.27,26.4212976]
[1633060276139,28.14462183,139.4,139.27,0.0212976]
[1633060276538,28.14462183,139.4,139.27,5.85453802]
[1633060276738,28.14462183,139.4,139.27,394.90577056]
[1633060279542,28.14462183,139.4,139.28,2.45]
[1633060281643,28.14462183,139.4,139.29,7.14321181]
[1633060282046,28.14462183,139.4,139.27,389.07253014]
[1633060284046,51.31662183,139.4,139.27,389.07253014]
[1633060284246,56.95205144,139.4,139.27,389.07253014]
[1633060284447,66.4428915,139.4,139.23,0.0212976]
[1633060284650,17.05491168,139.39,139.23,0.0212976]
[1633060284847,2.45,139.38,139.2,0.0212976]
[1633060285047,24.33030693,139.37,139.2,0.0212976]
[1633060285248,2.45,139.36,139.2,0.0212976]
[1633060285648,2.45,139.36,139.21,5.63542961]
[1633060285854,2.45,139.36,139.22,2.45]
[1633060286051,2.45,139.36,139.23,0.0212976]
[1633060286247,2.45,139.39,139.24,2.45]
[1633060286449,2.45,139.39,139.25,0.0212976]
[1633060286652,25.81158676,139.38,139.26,2.45]
[1633060286849,40.65858676,139.38,139.27,0.0212976]
[1633060287050,2.45,139.37,139.27,0.0212976]
[1633060287250,2.45,139.37,139.23,0.0212976]
[1633060287854,2.45,139.37,139.22,0.0212976]
[1633060288052,2.45,139.37,139.22,2.45]
[1633060288252,2.45,139.37,139.23,5.63542961]
[1633060288455,2.45,139.37,139.24,2.4712976]
[1633060288651,2.45,139.37,139.3,431.42180868]
[1633060289051,20.4112,139.37,139.3,431.42180868]
[1633060289254,26.04662961,139.37,139.18,7.82401258]
[1633060289453,44.84962961,139.37,139.18,7.82401258]
[1633060289653,39.2142,139.37,139.18,7.82401258]
[1633060289855,21.253,139.37,139.19,34.59713672]
[1633060290054,21.253,139.37,139.2,2.45]
[1633060290254,21.253,139.37,139.2,8.08542961]
[1633060290454,21.253,139.37,139.21,446.30297019]
[1633060290654,21.253,139.37,139.22,2.45]
[1633060291653,21.253,139.37,139.21,446.30297019]
[1633060292660,51.253,139.37,139.21,446.30297019]
[1633060293872,21.253,139.37,139.21,446.30297019]
[1633060294280,51.253,139.37,139.21,446.30297019]
[1633060294858,3.74623153,139.36,139.21,446.30297019]
[1633060295061,24.29789233,139.35,139.21,446.30297019]
[1633060295460,54.29789233,139.35,139.21,446.30297019]
[1633060295860,17.9645,139.34,139.21,446.30297019]
[1633060296060,2.45,139.33,139.21,446.30297019]
[1633060296263,2.45,139.33,139.17,0.0212976]
[1633060296461,2.45,139.33,139.13,78.5113]
[1633060296462,2.45,139.33,139.14,0.0212976]
[1633060296863,23.51788672,139.32,139.14,7.59964627]
[1633060297060,2.45,139.31,139.14,7.59964627]
[1633060297281,23.319,139.31,139.14,7.59964627]
[1633060298665,5.63542961,139.3,139.14,7.59964627]
[1633060298864,31.75868271,139.29,139.14,0.0212976]
[1633060299062,49.72958271,139.29,139.14,0.0212976]
[1633060299463,49.72958271,139.29,139.11,188.5038976]
[1633060299664,49.72958271,139.29,139.14,413.71588716]
[1633060300063,49.72958271,139.29,139.14,419.28333459]
[1633060300964,30.0,139.28,139.14,419.28333459]
[1633060301165,2.45,139.27,139.14,419.28333459]
[1633060301370,30.34912196,139.26,139.14,419.28333459]
[1633060301568,2.45,139.25,139.14,419.28333459]
[1633060301768,2.45,139.24,139.15,8.08818414]
[1633060302170,2.45,139.27,139.15,13.72361375]
[1633060302369,2.45,139.27,139.16,10.49580282]
[1633060302569,2.45,139.27,139.17,8.059951]
[1633060302973,25.22842114,139.26,139.17,11.80474242]
[1633060303175,25.22842114,139.26,139.15,3.78255466]
[1633060303389,2.45,139.25,139.15,12.04882687]
[1633060303589,2.45,139.25,139.15,8.26627221]
[1633060303789,2.45,139.25,139.15,12.0811759]
[1633060306298,30.0,139.31,139.17,3.7696867]
[1633060306299,2.45,139.29,139.17,3.7696867]
[1633060306500,2.45,139.29,139.18,3.7225135]
[1633060306698,2.45,139.29,139.2,3.68507772]
[1633060307100,2.45,139.33,139.2,6.13507772]
[1633060307298,2.45,139.33,139.21,11.86244321]
[1633060307899,2.45,139.33,139.23,3.70192911]
[1633060308099,2.45,139.33,139.23,30.13534014]
[1633060308300,2.45,139.33,139.23,11.69134014]
[1633060308500,2.45,139.33,139.21,3.73442126]
[1633060308699,3.74726585,139.32,139.21,3.73442126]
[1633060308900,2.45,139.31,139.21,3.73442126]
[1633060309102,2.45,139.32,139.22,3.78693885]
[1633060309297,2.45,139.32,139.23,3.78548625]
[1633060309501,2.45,139.32,139.22,3.81552122]
[1633060309699,23.10684363,139.31,139.22,3.81552122]
[1633060310300,2.45,139.32,139.22,3.81552122]
[1633060310499,2.45,139.32,139.23,3.78484095]
[1633060312503,2.45,139.32,139.22,0.0212976]
[1633060312504,2.45,139.32,139.24,3.87655846]
[1633060313506,25.28425589,139.35,139.24,3.87655846]
[1633060315905,25.28425589,139.35,139.25,3.98790923]
[1633060316106,25.28425589,139.35,139.25,12.30089093]
[1633060316307,106.62468407,139.35,139.24,4.00011193]
[1633060316507,130.03168407,139.35,139.23,4.02947226]
[1633060316706,130.03168407,139.35,139.21,4.03337453]
[1633060316908,130.03168407,139.35,139.2,4.04988588]
[1633060317706,130.03168407,139.35,139.19,4.06595504]
[1633060317905,127.58168407,139.35,139.19,4.06595504]
[1633060318106,127.58168407,139.35,139.2,4.09526911]
[1633060318305,3.02,139.34,139.2,4.09526911]
[1633060318508,3.02,139.34,139.19,4.11146868]
[1633060318706,63.37772818,139.33,139.19,4.11146868]
[1633060318906,25.94274084,139.32,139.19,4.11146868]
[1633060319106,17.9681,139.31,139.19,4.11146868]
[1633060319307,3.02,139.3,139.19,4.11146868]
[1633060319508,8.65542961,139.3,139.18,4.15451264]
[1633060319706,66.39772818,139.3,139.18,4.15451264]
[1633060319907,57.74229857,139.29,139.18,4.15451264]
[1633060320109,25.15900528,139.28,139.17,4.15460607]
[1633060320309,52.90957797,139.28,139.17,4.15460607]
[1633060320508,82.90957797,139.28,139.17,4.15460607]
[1633060320910,55.15900528,139.28,139.18,4.1104317]
[1633060321111,55.15900528,139.28,139.2,4.07493078]
[1633060322308,101.98897618,139.28,139.17,4.15458976]
[1633060322507,117.54797618,139.28,139.16,4.15461842]
[1633060322707,87.54797618,139.28,139.16,4.15461842]
[1633060323906,30.0,139.25,139.16,4.15461842]
[1633060324107,32.78818957,139.24,139.16,4.15461842]
[1633060324306,49.38018957,139.24,139.15,12.47233824]
[1633060324711,49.38018957,139.24,139.15,8.31779418]
[1633060326709,49.38018957,139.24,139.13,4.15424492]
[1633060327108,49.38018957,139.24,139.14,4.15398975]
[1633060327311,32.78818957,139.24,139.13,4.15392349]
[1633060327711,17.9793,139.23,139.12,4.15438096]
[1633060327910,3.02,139.22,139.1,12.47563628]
[1633060328109,49.8499709,139.22,139.1,8.32099622]
[1633060328509,25.06895366,139.21,139.08,83.34903718]
[1633060328708,3.02,139.2,139.09,8.3217695]
[1633060329109,3.02,139.2,139.08,79.1942]
[1633060329311,3.02,139.2,139.07,82.52087257]
[1633060329509,3.02,139.2,139.08,8.32219452]
[1633060329914,12.52447099,139.2,139.07,4.15457257]
[1633060330110,12.52447099,139.2,139.06,4.15393216]
[1633060330311,12.52447099,139.2,139.06,12.47606029]
[1633060330512,12.52447099,139.2,139.07,4.15348515]
[1633060330713,12.52447099,139.2,139.08,4.15316083]
[1633060330911,12.52447099,139.2,139.09,4.15278623]
[1633060331110,12.52447099,139.2,139.1,4.15260435]
[1633060331313,12.52447099,139.2,139.09,4.15265395]
[1633060331911,12.52447099,139.2,139.1,4.15238692]
[1633060333112,12.52447099,139.2,139.09,4.15222656]
[1633060336019,27.87947099,139.2,139.07,4.15269447]
[1633060336219,91.25719917,139.2,139.07,4.15269447]
[1633060336420,85.62176956,139.2,139.06,12.47471801]
[1633060337019,157.95286956,139.2,139.06,12.47471801]
[1633060338822,130.20229687,139.2,139.06,12.47471801]
[1633060339023,84.85557099,139.2,139.06,4.15258988]
[1633060339221,75.3511,139.2,139.07,12.47335688]
[1633060339422,75.3511,139.2,139.08,4.15236698]
[1633060339923,75.3511,139.2,139.07,4.15246048]
[1633060340122,3.02,139.2,139.07,4.15246048]
[1633060340321,3.02,139.2,139.08,4.15248856]
[1633060341223,3.02,139.2,139.09,4.15269194]
[1633060342225,3.02,139.2,139.1,4.15287784]
[1633060343230,3.02,139.2,139.11,4.15260901]
[1633060343427,3.02,139.2,139.13,4.15278741]
[1633060343627,3.02,139.2,139.12,4.15281889]
[1633060343827,3.02,139.2,139.13,4.15275612]
[1633060345228,3.02,139.2,139.14,4.15420486]
[1633060345632,3.02,139.2,139.15,4.15390443]
[1633060345832,60.0,139.22,139.16,4.15372438]
[1633060346232,60.0,139.22,139.16,12.47121636]
[1633060346431,60.0,139.22,139.17,4.15450342]
[1633060347031,60.0,139.22,139.16,4.15496302]
[1633060348434,60.0,139.22,139.17,4.15544221]
[1633060349240,60.0,139.22,139.18,4.1551776]
[1633060349433,60.0,139.22,139.19,4.15495424]
[1633060349834,60.0,139.22,139.2,4.15479851]
[1633060350033,60.0,139.22,139.2,12.47115042]
[1633060350233,60.0,139.22,139.2,4.15479851]
[1633060350637,60.0,139.22,139.2,27.53379851]
[1633060350835,60.0,139.22,139.21,8.31595145]
[1633060351236,60.0,139.22,139.2,4.15479851]
[1633060352234,60.0,139.22,139.19,4.15378541]
[1633060352434,60.0,139.22,139.17,4.15426183]
[1633060353434,60.0,139.22,139.18,4.15409507]
[1633060353636,60.0,139.22,139.18,12.47081788]
[1633060353834,60.0,139.22,139.19,4.15379065]
[1633060354635,60.0,139.22,139.18,4.15368504]
[1633060355037,60.0,139.22,139.17,4.15378756]
[1633060355437,25.25166994,139.21,139.17,4.15378756]
[1633060355638,60.0,139.22,139.16,4.15410928]
[1633060355836,60.0,139.22,139.17,4.15398187]
[1633060357838,60.0,139.22,139.2,2.07682809]
[1633060361343,60.0,139.22,139.21,2.0769956]
[1633060362344,60.0,139.22,139.19,4.15342393]
[1633060362943,60.0,139.22,139.2,4.15302841]
[1633060363143,60.0,139.22,139.19,4.15323819]
[1633060364546,60.0,139.22,139.2,4.15302151]
[1633060364744,3.02,139.27,139.21,4.15272852]
[1633060364944,3.02,139.27,139.23,2.0763813]
[1633060365944,3.02,139.27,139.21,2.07676008]
[1633060366944,3.02,139.27,139.23,2.07666728]
[1633060368946,3.02,139.27,139.24,2.07694278]
[1633060369948,3.02,139.27,139.25,2.07694044]
[1633060370950,24.44190658,139.26,139.25,2.07694044]
[1633060371149,27.46190658,139.26,139.24,2.07720903]
[1633060371751,3.02,139.26,139.25,2.07735686]
[1633060374153,3.02,139.26,139.24,2.07772969]
[1633060375853,3.02,139.26,139.25,2.07782287]
[1633060376053,3.02,139.26,139.24,2.07797285]
[1633060376253,3.02,139.26,139.23,2.07811353]
[1633060376853,24.675,139.26,139.23,2.07811353]
[1633060377056,24.675,139.26,139.22,2.07822053]
[1633060378054,3.02,139.26,139.23,2.07823775]
[1633060380462,3.02,139.26,139.23,0.00823775]
[1633060380659,3.02,139.26,139.2,4.15647551]
[1633060380660,55.48540051,139.26,139.2,4.15647551]
[1633060380866,3.02,139.26,139.17,4.15727561]
[1633060381260,3.02,139.26,139.21,4.15609917]
[1633060381460,3.02,139.3,139.22,4.15567014]
[1633060381660,3.02,139.3,139.19,3.02]
[1633060381661,3.02,139.3,139.25,4.15514111]
[1633060382061,3.02,139.33,139.26,4.15452096]
[1633060382262,19.25554815,139.39,139.26,4.15452096]
[1633060382460,3.02,139.38,139.29,4.15381497]
[1633060383061,3.02,139.38,139.3,4.15270374]
[1633060384260,4.76259538,139.41,139.31,3.02]
[1633060384261,7.78259538,139.41,139.31,3.02]
[1633060384461,25.87569047,139.4,139.31,3.02]
[1633060384661,25.87569047,139.4,139.32,8.33063679]
[1633060384865,25.87569047,139.4,139.32,0.0212976]
[1633060384866,3.02,139.39,139.32,0.0212976]
[1633060385062,3.02,139.39,139.29,12.46140257]
[1633060385261,3.02,139.39,139.3,4.15084701]
[1633060385460,3.02,139.39,139.29,12.46039471]
[1633060387370,3.02,139.39,139.29,8.31034457]
[1633060387568,3.02,139.39,139.3,0.0212976]
[1633060388568,3.02,139.39,139.29,8.33146718]
[1633060388766,3.02,139.39,139.3,0.0212976]
[1633060389369,3.02,139.39,139.29,0.0212976]
[1633060389768,3.02,139.39,139.28,3.02]
[1633060395372,3.02,139.39,139.29,13.9446562]
[1633060395571,3.02,139.39,139.3,3.02]
[1633060396373,24.77817622,139.4,139.3,3.02]
[1633060396574,24.77817622,139.4,139.3,8.65542961]
[1633060396773,24.77817622,139.4,139.3,8.67672721]
[1633060396973,4.76259538,139.41,139.3,8.67672721]
[1633060397774,4.76259538,139.41,139.31,540.96748629]
[1633060397972,33.31312707,139.41,139.31,543.98748629]
[1633060398375,3.02,139.4,139.31,540.96748629]
[1633060399575,3.02,139.4,139.27,3.02]
[1633060406902,58.5596244,139.4,139.26,519.72504357]
[1633060407102,0.02088,139.39,139.26,519.72504357]
[1633060407306,29.78003112,139.37,139.26,519.72504357]
[1633060407503,3.02,139.36,139.26,519.72504357]
[1633060409705,3.02,139.36,139.24,4.15237973]
[1633060409904,3.02,139.36,139.25,4.15342866]
[1633060410507,3.02,139.36,139.24,4.15332484]
[1633060411504,3.02,139.36,139.23,4.14342694]
[1633060411905,31.46183699,139.36,139.23,4.14342694]
[1633060412315,56.6862666,139.36,139.23,4.14342694]
[1633060412505,9.49491327,139.34,139.22,8.31313092]
[1633060412705,28.55871401,139.33,139.22,8.31313092]
[1633060412905,34.19414362,139.33,139.22,8.31313092]
[1633060413208,34.19414362,139.33,139.21,418.49361612]
[1633060413606,43.68973895,139.33,139.21,418.49361612]
[1633060415110,38.05430934,139.33,139.21,418.49361612]
[1633060415311,12.51559533,139.33,139.24,4.11547232]
[1633060415509,3.02,139.33,139.24,4.11547232]
[1633060415710,3.02,139.33,139.24,7.13547232]
[1633060415908,3.02,139.33,139.24,7.15676992]
[1633060416108,3.02,139.33,139.25,8.31229048]
[1633060416307,21.68461927,139.32,139.24,3.0412976]
[1633060416509,24.70461927,139.32,139.23,4.08613473]
[1633060416709,24.70461927,139.32,139.23,8.31357423]
[1633060417509,24.70461927,139.32,139.23,12.39084822]
[1633060419714,24.70461927,139.32,139.23,8.31357423]
[1633060419914,24.70461927,139.32,139.22,3.02]
[1633060420115,3.02,139.32,139.22,3.02]
[1633060420312,3.02,139.34,139.22,8.65542961]
[1633060420516,3.02,139.34,139.23,12.35179155]
[1633060420721,3.02,139.36,139.24,7.07368893]
[1633060420915,9.49286769,139.37,139.25,12.32201001]
[1633060421112,9.49286769,139.37,139.26,3.02]
[1633060421712,9.49286769,139.37,139.27,8.31131888]
[1633060421912,9.49286769,139.37,139.27,11.33131888]
[1633060422112,9.49286769,139.37,139.28,12.32357126]
[1633060422311,12.7833425,139.4,139.29,3.02]
[1633060422512,12.7833425,139.4,139.3,8.30951308]
[1633060422715,12.7833425,139.4,139.31,3.02]
[1633060423111,3.02,139.4,139.31,3.02]
[1633060423314,3.02,139.4,139.32,0.0212976]
[1633060423515,4.76259538,139.41,139.33,3.02]
[1633060423713,4.76259538,139.41,139.33,3.0412976]
[1633060429722,4.76259538,139.41,139.32,389.12134708]
[1633060429919,3.02,139.4,139.32,389.12134708]
[1633060430120,28.33863471,139.39,139.32,389.12134708]
[1633060430320,31.35863471,139.39,139.29,0.0212976]
[1633060430519,3.02,139.39,139.29,0.0212976]
[1633060430719,3.02,139.39,139.29,8.33072773]
[1633060432221,29.47341707,139.4,139.3,3.02]
[1633060432422,3.02,139.39,139.28,3.02]
[1633060436221,5.63542961,139.38,139.28,3.02]
[1633060436424,23.02929769,139.37,139.28,3.02]
[1633060436723,23.02929769,139.37,139.29,0.0212976]
[1633060438327,23.02929769,139.37,139.28,3.02]
[1633060439428,28.6647273,139.37,139.28,3.02]
[1633060439630,31.6847273,139.37,139.26,513.82640748]
[1633060439827,26.04929769,139.37,139.26,513.82640748]
[1633060440427,26.04929769,139.37,139.26,436.57460748]
[1633060440828,23.02929769,139.37,139.26,436.57460748]
[1633060441028,23.02929769,139.37,139.26,515.14670748]
[1633060441229,23.02929769,139.37,139.27,8.3105051]
[1633060441428,23.02929769,139.37,139.28,3.02]
[1633060444933,3.02,139.39,139.28,3.02]
[1633060445133,7.78259538,139.41,139.29,5.63542961]
[1633060445333,4.76259538,139.41,139.3,11.32869595]
[1633060445533,4.76259538,139.41,139.31,8.30828644]
[1633060445736,4.76259538,139.41,139.3,6.91568334]
[1633060445737,4.76259538,139.41,139.32,3.02]
[1633060445935,4.76259538,139.41,139.32,3.0412976]
[1633060446534,4.76259538,139.41,139.32,8.67672721]
[1633060446734,4.76259538,139.41,139.33,8.27758842]
[1633060446937,4.76259538,139.41,139.34,3.02]
[1633060447135,4.76259538,139.41,139.34,8.65542961]
[1633060447334,4.76259538,139.41,139.35,5.63542961]
[1633060447534,4.76259538,139.41,139.36,3.02]
[1633060449441,9.48605544,139.47,139.41,3.71124231]
[1633060449836,9.48537475,139.48,139.41,3.71124231]
[1633060450436,9.48537475,139.48,139.41,6.73124231]
[1633060451838,9.48537475,139.48,139.41,3.71124231]
[1633060452038,21.76443173,139.49,139.41,3.71124231]
[1633060452236,8.65542961,139.48,139.41,3.71124231]
[1633060453037,9.48605544,139.47,139.41,3.71124231]
[1633060453635,3.02,139.48,139.41,3.71124231]
[1633060454036,3.02,139.5,139.41,3.71124231]
[1633060454235,27.21361051,139.5,139.41,3.71124231]
[1633060456342,87.13896776,139.5,139.41,3.71124231]
[1633060456543,0.02088,139.49,139.41,3.71124231]
[1633060456741,29.7405786,139.47,139.41,3.71124231]
[1633060456944,3.02,139.46,139.41,3.71124231]
[1633060459144,3.71124231,139.41,139.34,3.02]
[1633060459341,23.50324231,139.41,139.34,3.02]
[1633060459540,24.47835766,139.4,139.32,386.58690459]
[1633060459940,24.47835766,139.4,139.32,3.02]
[1633060466048,3.71124231,139.41,139.32,3.02]
[1633060468047,3.02,139.4,139.29,0.0212976]
[1633060468247,3.02,139.4,139.29,3.0412976]
[1633060468448,3.02,139.4,139.29,0.0212976]
[1633060468449,25.0045264,139.39,139.29,0.0212976]
[1633060468647,3.02,139.38,139.28,0.0212976]
[1633060470049,3.02,139.38,139.28,8.33155359]
[1633060470246,3.02,139.38,139.29,0.0212976]
[1633060472653,3.02,139.38,139.28,8.31025989]
[1633060474053,25.0045264,139.39,139.29,3.02]
[1633060476657,28.0245264,139.39,139.27,3.02]
[1633060476859,104.53734293,139.39,139.27,3.02]
[1633060477657,179.65924293,139.39,139.27,3.02]
[1633060478057,131.37159672,139.39,139.27,3.02]
[1633060478259,103.1464264,139.39,139.27,3.02]
[1633060478459,103.1464264,139.39,139.28,0.0212976]
[1633060478658,103.1464264,139.39,139.29,3.02]
[1633060478859,28.0245264,139.39,139.29,3.0412976]
[1633060480465,28.0245264,139.39,139.29,3.02]
[1633060491372,37.51603086,139.39,139.29,3.02]
[1633060492979,37.51603086,139.39,139.3,8.31046048]
[1633060493179,28.0245264,139.39,139.3,8.31046048]
[1633060493577,28.0245264,139.39,139.3,12.32973526]
[1633060494479,28.0245264,139.39,139.3,8.31046048]
[1633060494679,28.0245264,139.39,139.29,3.02]
[1633060494879,33.65995601,139.39,139.27,7.07517212]
[1633060495081,33.65995601,139.39,139.28,8.31181529]
[1633060495679,9.49218602,139.38,139.28,8.31181529]
[1633060495879,12.51218602,139.38,139.28,8.31181529]
[1633060496779,12.51218602,139.38,139.28,12.34372797]
[1633060496982,3.02,139.38,139.28,12.34372797]
[1633060498782,3.02,139.38,139.29,4.01721792]
[1633060498981,12.51218602,139.38,139.29,7.03721792]
[1633060499184,18.98437204,139.38,139.31,3.97576023]
[1633060499382,9.49218602,139.38,139.32,3.96579803]
[1633060499582,3.71124231,139.41,139.33,3.95524826]
[1633060499781,3.71124231,139.41,139.33,8.30857419]
[1633060500182,3.71124231,139.41,139.32,3.02]
[1633060500783,3.71124231,139.41,139.34,1.96527884]
[1633060501982,3.71124231,139.41,139.35,2.01639856]
[1633060502182,3.71124231,139.41,139.36,2.02528166]
[1633060502784,3.71124231,139.41,139.37,2.03608879]
[1633060502982,3.71124231,139.41,139.38,2.03945935]
[1633060503183,3.71124231,139.41,139.37,2.0471245]
[1633060503382,3.71124231,139.41,139.36,2.04791462]
[1633060503784,3.71124231,139.41,139.37,2.04507255]
[1633060504186,3.71124231,139.41,139.38,2.05333804]
[1633060504991,3.71124231,139.41,139.37,2.04266911]
[1633060505791,3.71124231,139.41,139.36,2.05649092]
[1633060506996,3.71124231,139.41,139.35,2.06347335]
[1633060508008,21.44641043,139.4,139.35,2.06347335]
[1633060509910,21.44641043,139.4,139.34,2.0563749]
[1633060510112,6.73124231,139.41,139.34,2.0563749]
[1633060510311,6.73124231,139.41,139.35,2.05092431]
[1633060511412,3.71124231,139.41,139.35,2.05092431]
[1633060515413,3.71124231,139.41,139.34,2.07405396]
[1633060515613,3.71124231,139.41,139.31,456.79993624]
[1633060515614,3.71124231,139.41,139.33,2.07550849]
[1633060515815,3.71124231,139.41,139.34,2.07549392]
[1633060516214,3.71124231,139.41,139.35,2.07538466]
[1633060516415,3.71124231,139.41,139.34,2.07543262]
[1633060518515,3.71124231,139.41,139.33,2.07298077]
[1633060522120,23.33638215,139.39,139.33,2.07298077]
[1633060522324,23.33638215,139.39,139.31,452.65182831]
[1633060522325,23.33638215,139.39,139.32,2.06286872]
[1633060525222,23.33638215,139.39,139.33,2.05851641]
[1633060525826,23.33638215,139.39,139.32,2.05993666]
[1633060526921,23.33638215,139.39,139.33,2.05252183]
[1633060527122,23.33638215,139.39,139.32,2.04597677]
[1633060527422,23.33638215,139.39,139.33,2.04395765]
[1633060533031,23.33638215,139.39,139.32,2.01507415]
[1633060533032,8.65542961,139.38,139.32,2.01507415]
[1633060533232,18.14761563,139.38,139.31,2.02849971]
[1633060533434,8.61589537,139.29,139.27,0.0212976]
[1633060533631,8.61589537,139.29,139.26,0.0212976]
[1633060533632,22.97496038,139.28,139.26,0.0212976]
[1633060534231,22.97496038,139.28,139.26,8.31378871]
[1633060534434,22.97496038,139.28,139.27,0.0212976]
[1633060534633,22.97496038,139.28,139.24,4.10260814]
[1633060534840,41.65896038,139.28,139.23,12.45213478]
[1633060535742,8.61589537,139.29,139.23,12.45213478]
[1633060536140,8.61589537,139.29,139.25,4.1533082]
[1633060536335,8.61589537,139.29,139.25,12.46608717]
[1633060536535,8.61589537,139.29,139.26,4.12031443]
[1633060539941,8.61589537,139.29,139.27,4.07464126]
[1633060540145,8.61589537,139.29,139.27,12.38615778]
[1633060544142,8.61589537,139.29,139.25,4.1533871]
[1633060544341,8.61589537,139.29,139.25,8.3137508]
[1633060546144,8.61589537,139.29,139.25,12.46717347]
[1633060549848,8.61589537,139.29,139.26,4.1532662]
[1633060550045,8.61589537,139.29,139.25,12.4671232]
[1633060550648,8.61589537,139.29,139.26,4.15323645]
[1633060550849,8.61589537,139.29,139.27,7.17280218]